[Event "*** Titled Tuesday 3|2 Blitz"]
[Site "Chess.com"]
[Date "2016.05.03"]
[Round "2"]
[White "ZEN-22"]
[Black "vinceyoung15"]
[Result "1-0"]
[WhiteElo "2405"]
[BlackElo "2214"]
[TimeControl "180+2"]
[EndTime "17:20:20 PDT"]
[Termination "ZEN-22 won on time"]

1. d3 {[%clk 0:03:01.9]} 1... d5 {[%clk 0:02:47.2]} 2. g3 {[%clk 0:03:03.1]}
2... e6 {[%clk 0:02:46.4]} 3. Bg2 {[%clk 0:03:04.6]} 3... Nf6 {[%clk 0:02:46.5]}
4. Nf3 {[%clk 0:03:06.2]} 4... Be7 {[%clk 0:02:46.4]} 5. c4 {[%clk 0:03:06]}
5... O-O {[%clk 0:02:47.2]} 6. O-O {[%clk 0:03:06.2]} 6... b6 {[%clk 0:02:43]}
7. Nc3 {[%clk 0:03:05.7]} 7... Bb7 {[%clk 0:02:43.9]} 8. cxd5 {[%clk 0:03:06.7]}
8... Nxd5 {[%clk 0:02:42.6]} 9. Bd2 {[%clk 0:03:06.3]} 9... Nd7 {[%clk
0:02:42.3]} 10. Rc1 {[%clk 0:03:06.6]} 10... c5 {[%clk 0:02:42]} 11. a3 {[%clk
0:03:07]} 11... N7f6 {[%clk 0:02:39.8]} 12. Nxd5 {[%clk 0:03:07.8]} 12... Qxd5
{[%clk 0:02:23.7]} 13. b4 {[%clk 0:03:05.2]} 13... Rfd8 {[%clk 0:02:13.8]} 14.
Bc3 {[%clk 0:03:05.8]} 14... cxb4 {[%clk 0:02:04.9]} 15. axb4 {[%clk 0:03:06.6]}
15... Qb5 {[%clk 0:02:03]} 16. Qb3 {[%clk 0:03:04.6]} 16... a5 {[%clk
0:01:51.9]} 17. Rfd1 {[%clk 0:02:52.1]} 17... axb4 {[%clk 0:01:37.2]} 18. Nd4
{[%clk 0:02:46.6]} 18... Qd7 {[%clk 0:01:35.6]} 19. Bxb7 {[%clk 0:02:43.3]}
19... Qxb7 {[%clk 0:01:35.4]} 20. Bb2 {[%clk 0:02:44.2]} 20... Rac8 {[%clk
0:01:33.1]} 21. e4 {[%clk 0:02:38.5]} 21... Ng4 {[%clk 0:01:12.6]} 22. Rxc8
{[%clk 0:02:36.2]} 22... Qxc8 {[%clk 0:01:02.1]} 23. Rc1 {[%clk 0:02:36.9]}
23... Bc5 {[%clk 0:01:00.6]} 24. h3 {[%clk 0:02:36]} 24... Ne5 {[%clk
0:00:54.6]} 25. Kg2 {[%clk 0:02:19.5]} 25... Qa6 {[%clk 0:00:43.7]} 26. Qc2
{[%clk 0:02:04.2]} 26... Nxd3 {[%clk 0:00:36.1]} 27. Ra1 {[%clk 0:01:46.6]}
27... Qb7 {[%clk 0:00:27.1]} 28. Qxd3 {[%clk 0:01:46]} 28... e5 {[%clk
0:00:28.6]} 29. Qc4 {[%clk 0:01:43]} 29... Bxd4 {[%clk 0:00:27.3]} 30. Qxb4
{[%clk 0:01:38.4]} 30... Qxe4+ {[%clk 0:00:26.6]} 31. Kh2 {[%clk 0:01:39.6]}
31... Qe2 {[%clk 0:00:21.6]} 32. Bxd4 {[%clk 0:01:39.2]} 32... exd4 {[%clk
0:00:20.5]} 33. Qxd4 {[%clk 0:01:40.1]} 33... Qe8 {[%clk 0:00:19.2]} 34. Qxb6
{[%clk 0:01:40.4]} 34... h6 {[%clk 0:00:20.1]} 35. h4 {[%clk 0:01:40.6]} 35...
Rd2 {[%clk 0:00:20.2]} 36. Rf1 {[%clk 0:01:38]} 36... Qe2 {[%clk 0:00:20.5]} 37.
Kg1 {[%clk 0:01:39.3]} 37... Rb2 {[%clk 0:00:19.7]} 38. Qd8+ {[%clk 0:01:39.2]}
38... Kh7 {[%clk 0:00:21]} 39. Qd4 {[%clk 0:01:40.8]} 39... Rd2 {[%clk
0:00:19.9]} 40. Qa7 {[%clk 0:01:40.7]} 40... Rc2 {[%clk 0:00:18.2]} 41. Qxf7
{[%clk 0:01:41.1]} 41... Qd3 {[%clk 0:00:16]} 42. Qf4 {[%clk 0:01:41.2]} 42...
Rc4 {[%clk 0:00:15.8]} 43. Qe5 {[%clk 0:01:39.8]} 43... Qg6 {[%clk 0:00:12.9]}
44. h5 {[%clk 0:01:39.6]} 44... Qg4 {[%clk 0:00:11]} 45. Qd5 {[%clk 0:01:37.1]}
45... Rf4 {[%clk 0:00:08]} 46. Re1 {[%clk 0:01:37.2]} 46... Rf5 {[%clk
0:00:09.1]} 47. Qd3 {[%clk 0:01:37.6]} 47... Qxh5 {[%clk 0:00:08]} 48. Re5
{[%clk 0:01:38.6]} 48... g6 {[%clk 0:00:06.7]} 49. Re7+ {[%clk 0:01:39.4]} 49...
Kg8 {[%clk 0:00:08.1]} 50. Qd8+ {[%clk 0:01:40.4]} 50... Rf8 {[%clk 0:00:09.4]}
51. Qd7 {[%clk 0:01:40.9]} 1-0

[Event "*** Titled Tuesday 3|2 Blitz"]
[Site "Chess.com"]
[Date "2016.05.03"]
[Round "2"]
[White "chessking2151"]
[Black "RamonManon0g"]
[Result "1-0"]
[WhiteElo "2305"]
[BlackElo "2266"]
[TimeControl "180+2"]
[EndTime "17:20:42 PDT"]
[Termination "chessking2151 won by resignation"]

1. e4 {[%clk 0:03:01.9]} 1... c5 {[%clk 0:02:59.8]} 2. c3 {[%clk 0:03:01.8]}
2... d5 {[%clk 0:03:00]} 3. exd5 {[%clk 0:03:01.7]} 3... Qxd5 {[%clk 0:03:01.9]}
4. d4 {[%clk 0:02:56.8]} 4... Nf6 {[%clk 0:03:02.9]} 5. Nf3 {[%clk 0:02:57.2]}
5... Bg4 {[%clk 0:03:02.6]} 6. Be2 {[%clk 0:02:57.3]} 6... cxd4 {[%clk
0:03:03.9]} 7. cxd4 {[%clk 0:02:58]} 7... Nc6 {[%clk 0:03:05.1]} 8. Nc3 {[%clk
0:02:58.7]} 8... Qd8 {[%clk 0:03:05.6]} 9. O-O {[%clk 0:02:57.2]} 9... e6 {[%clk
0:03:07.1]} 10. h3 {[%clk 0:02:55.6]} 10... Bh5 {[%clk 0:03:07.8]} 11. Be3
{[%clk 0:02:56.1]} 11... Be7 {[%clk 0:03:07.5]} 12. Rc1 {[%clk 0:02:56.8]} 12...
O-O {[%clk 0:03:07]} 13. a3 {[%clk 0:02:49.7]} 13... Rc8 {[%clk 0:03:06]} 14.
Qb3 {[%clk 0:02:41.1]} 14... b6 {[%clk 0:03:03.3]} 15. Rfd1 {[%clk 0:02:31.3]}
15... Na5 {[%clk 0:03:02.8]} 16. Qa2 {[%clk 0:02:28.2]} 16... h6 {[%clk
0:02:48.4]} 17. d5 {[%clk 0:01:35.6]} 17... exd5 {[%clk 0:02:46.6]} 18. Nxd5
{[%clk 0:01:34.4]} 18... Nxd5 {[%clk 0:02:47.6]} 19. Rxd5 {[%clk 0:01:27.2]}
19... Rxc1+ {[%clk 0:02:48.3]} 20. Bxc1 {[%clk 0:01:27.8]} 20... Qc7 {[%clk
0:02:46.8]} 21. Be3 {[%clk 0:01:27.3]} 21... Bg6 {[%clk 0:02:44.7]} 22. b4
{[%clk 0:01:21]} 22... Nb7 {[%clk 0:02:39.2]} 23. Qd2 {[%clk 0:01:16.8]} 23...
Bf6 {[%clk 0:02:34.2]} 24. Rd7 {[%clk 0:01:12.6]} 24... Qc6 {[%clk 0:02:31.2]}
25. b5 {[%clk 0:01:11]} 25... Qe4 {[%clk 0:02:31.9]} 26. Bd3 {[%clk 0:01:06.6]}
26... Qa4 {[%clk 0:01:42.7]} 27. Bxg6 {[%clk 0:01:01.3]} 27... Na5 {[%clk
0:01:41.3]} 28. Bf5 {[%clk 0:00:35.9]} 28... Qxb5 {[%clk 0:01:39.6]} 29. Qd3
{[%clk 0:00:31.9]} 29... Nc4 {[%clk 0:01:27.6]} 30. Bh7+ {[%clk 0:00:25.8]}
30... Kh8 {[%clk 0:01:27.6]} 31. Be4 {[%clk 0:00:26.9]} 31... a5 {[%clk
0:01:19.2]} 32. Rd5 {[%clk 0:00:27.6]} 32... Qa4 {[%clk 0:01:15]} 33. Qc2 {[%clk
0:00:21.6]} 33... Qxc2 {[%clk 0:01:11.8]} 34. Bxc2 {[%clk 0:00:23.5]} 34... Nxa3
{[%clk 0:01:13.6]} 35. Ba4 {[%clk 0:00:24.1]} 35... Rb8 {[%clk 0:01:12.3]} 36.
Bf4 {[%clk 0:00:24.1]} 36... Rb7 {[%clk 0:01:12.2]} 37. Nd4 {[%clk 0:00:24.6]}
37... Bxd4 {[%clk 0:01:09.1]} 38. Rxd4 {[%clk 0:00:26.5]} 38... b5 {[%clk
0:01:10.7]} 39. Bd6 {[%clk 0:00:17.4]} 39... b4 {[%clk 0:01:04.8]} 40. Bb3
{[%clk 0:00:17.6]} 40... Ra7 {[%clk 0:01:03.7]} 41. Bc5 {[%clk 0:00:18.3]} 41...
Rc7 {[%clk 0:01:04.7]} 42. Rd8+ {[%clk 0:00:19.2]} 42... Kh7 {[%clk 0:01:05.5]}
43. Bb6 {[%clk 0:00:20.7]} 43... Rc1+ {[%clk 0:01:05.9]} 44. Kh2 {[%clk
0:00:21.5]} 44... Rc3 {[%clk 0:01:06.8]} 45. Ba4 {[%clk 0:00:23]} 45... b3
{[%clk 0:01:06.9]} 46. Bd4 {[%clk 0:00:24.4]} 46... Rd3 {[%clk 0:01:06.9]} 47.
Bxb3 {[%clk 0:00:13]} 47... Rc3 {[%clk 0:01:07.6]} 48. Bxc3 {[%clk 0:00:13.4]}
48... Nb5 {[%clk 0:01:08.2]} 49. Bxa5 {[%clk 0:00:14]} 49... Na7 {[%clk
0:01:08.4]} 50. Bc2+ {[%clk 0:00:14.3]} 50... g6 {[%clk 0:01:08.6]} 51. Bc3
{[%clk 0:00:16.2]} 51... f6 {[%clk 0:01:04.5]} 52. Bxf6 {[%clk 0:00:16.6]} 1-0

[Event "*** Titled Tuesday 3|2 Blitz"]
[Site "Chess.com"]
[Date "2016.05.03"]
[Round "2"]
[White "GeorgMeier"]
[Black "E-Shaposhnikov"]
[Result "1/2-1/2"]
[WhiteElo "2749"]
[BlackElo "2457"]
[TimeControl "180+2"]
[EndTime "17:21:22 PDT"]
[Termination "Game drawn by repetition"]

1. Nf3 {[%clk 0:03:01.9]} 1... c5 {[%clk 0:03:00.1]} 2. g3 {[%clk 0:03:01.9]}
2... Nc6 {[%clk 0:03:00.7]} 3. c4 {[%clk 0:03:03]} 3... g6 {[%clk 0:03:01.4]} 4.
Nc3 {[%clk 0:03:03.4]} 4... Bg7 {[%clk 0:03:02.2]} 5. Bg2 {[%clk 0:03:04.8]}
5... e6 {[%clk 0:03:03.6]} 6. e3 {[%clk 0:03:03.4]} 6... Nge7 {[%clk 0:03:02.5]}
7. d4 {[%clk 0:03:04.2]} 7... cxd4 {[%clk 0:03:04.2]} 8. Nxd4 {[%clk 0:03:05.4]}
8... O-O {[%clk 0:02:58.4]} 9. O-O {[%clk 0:03:06.2]} 9... d5 {[%clk 0:02:57.4]}
10. cxd5 {[%clk 0:03:05.9]} 10... Nxd5 {[%clk 0:02:57.5]} 11. Nxd5 {[%clk
0:03:01.2]} 11... exd5 {[%clk 0:02:59.4]} 12. Re1 {[%clk 0:03:02.5]} 12... Nxd4
{[%clk 0:02:54.2]} 13. exd4 {[%clk 0:03:03.6]} 13... Be6 {[%clk 0:02:55.9]} 14.
Qb3 {[%clk 0:02:50.5]} 14... Bxd4 {[%clk 0:02:52.7]} 15. Bh6 {[%clk 0:02:51.4]}
15... Qf6 {[%clk 0:02:46.3]} 16. Re2 {[%clk 0:02:30.1]} 16... Rfc8 {[%clk
0:02:35.2]} 17. h4 {[%clk 0:02:28.6]} 17... Bb6 {[%clk 0:02:16.5]} 18. Bxd5
{[%clk 0:02:21.8]} 18... Bxd5 {[%clk 0:02:01.2]} 19. Qxd5 {[%clk 0:02:23.7]}
19... Re8 {[%clk 0:02:02.2]} 20. Bg5 {[%clk 0:01:27]} 20... Qd4 {[%clk
0:01:57.4]} 21. Qxd4 {[%clk 0:01:25.3]} 21... Bxd4 {[%clk 0:01:59.3]} 22. Rae1
{[%clk 0:01:25.5]} 22... Rxe2 {[%clk 0:01:56.4]} 23. Rxe2 {[%clk 0:01:27.4]}
23... f6 {[%clk 0:01:57.4]} 24. Bf4 {[%clk 0:01:24]} 24... Rc8 {[%clk
0:01:39.2]} 25. Rd2 {[%clk 0:01:18.4]} 25... Bb6 {[%clk 0:01:31.7]} 26. Kg2
{[%clk 0:01:13.3]} 26... Rd8 {[%clk 0:01:32.4]} 27. Rc2 {[%clk 0:01:11.2]} 27...
Kf7 {[%clk 0:01:32.2]} 28. Kf3 {[%clk 0:01:11.9]} 28... h5 {[%clk 0:01:28.8]}
29. Be3 {[%clk 0:01:12.5]} 29... Bxe3 {[%clk 0:01:26.2]} 30. Rc7+ {[%clk
0:01:07.3]} 30... Ke6 {[%clk 0:01:26.7]} 31. Kxe3 {[%clk 0:01:08.5]} 31... Rd7
{[%clk 0:01:28]} 32. Rxd7 {[%clk 0:01:08.1]} 32... Kxd7 {[%clk 0:01:29.9]} 33.
Ke4 {[%clk 0:01:03.7]} 33... Ke6 {[%clk 0:01:30.5]} 34. f3 {[%clk 0:01:01.7]}
34... g5 {[%clk 0:01:28.1]} 35. f4 {[%clk 0:00:55.9]} 35... gxh4 {[%clk
0:01:21.5]} 36. gxh4 {[%clk 0:00:56.6]} 36... f5+ {[%clk 0:01:12.6]} 37. Kd4
{[%clk 0:00:57.2]} 37... Kd6 {[%clk 0:01:14.2]} 38. Kc4 {[%clk 0:00:56.8]} 38...
Kc6 {[%clk 0:01:15.2]} 39. a4 {[%clk 0:00:56.1]} 39... a5 {[%clk 0:01:10.2]} 40.
b3 {[%clk 0:00:56.8]} 40... b6 {[%clk 0:01:09.5]} 41. b4 {[%clk 0:00:57.3]}
41... axb4 {[%clk 0:01:01.1]} 42. Kxb4 {[%clk 0:00:59.2]} 42... Kc7 {[%clk
0:01:02.4]} 43. Kb3 {[%clk 0:00:54.9]} 43... Kd6 {[%clk 0:00:58.1]} 44. Kc4
{[%clk 0:00:54]} 44... Kc6 {[%clk 0:00:59]} 45. Kb4 {[%clk 0:00:53.6]} 45... Kc7
{[%clk 0:00:57]} 46. Kb5 {[%clk 0:00:49]} 46... Kb7 {[%clk 0:00:57.6]} 47. Kc4
{[%clk 0:00:47.5]} 47... Kc6 {[%clk 0:00:58.5]} 48. Kb4 {[%clk 0:00:48.5]} 48...
Kc7 {[%clk 0:00:56.8]} 49. Kc3 {[%clk 0:00:46]} 49... Kd7 {[%clk 0:00:50.6]} 50.
Kd3 {[%clk 0:00:37.1]} 50... Kc7 {[%clk 0:00:50.1]} 51. Ke3 {[%clk 0:00:24.7]}
51... Kc6 {[%clk 0:00:37.5]} 52. Kd4 {[%clk 0:00:25]} 52... Kd6 {[%clk
0:00:37.7]} 53. Kc4 {[%clk 0:00:26.2]} 53... Kc6 {[%clk 0:00:38.5]} 54. Kb4
{[%clk 0:00:27.3]} 1/2-1/2

[Event "*** Titled Tuesday 3|2 Blitz"]
[Site "Chess.com"]
[Date "2016.05.03"]
[Round "2"]
[White "viktorskliarov"]
[Black "Lying-Ted"]
[Result "1-0"]
[WhiteElo "2451"]
[BlackElo "2244"]
[TimeControl "180+2"]
[EndTime "17:21:58 PDT"]
[Termination "viktorskliarov won by checkmate"]

1. e4 {[%clk 0:03:01.9]} 1... e6 {[%clk 0:02:59.2]} 2. d4 {[%clk 0:03:02.3]}
2... d5 {[%clk 0:02:58.3]} 3. e5 {[%clk 0:03:03.6]} 3... c5 {[%clk 0:02:58]} 4.
c3 {[%clk 0:03:04.8]} 4... Nc6 {[%clk 0:02:58.1]} 5. Nf3 {[%clk 0:03:06.3]} 5...
cxd4 {[%clk 0:02:57.5]} 6. cxd4 {[%clk 0:03:06.6]} 6... Nge7 {[%clk 0:02:58.7]}
7. Bd3 {[%clk 0:03:06.9]} 7... Nf5 {[%clk 0:02:59.4]} 8. Bxf5 {[%clk 0:03:07.7]}
8... exf5 {[%clk 0:03:01.3]} 9. O-O {[%clk 0:03:08.4]} 9... Be7 {[%clk
0:03:00.7]} 10. Be3 {[%clk 0:03:09.2]} 10... Be6 {[%clk 0:03:00.6]} 11. Ne1
{[%clk 0:03:09.7]} 11... h6 {[%clk 0:03:01.9]} 12. f4 {[%clk 0:03:10.2]} 12...
O-O {[%clk 0:03:02.1]} 13. Nd3 {[%clk 0:03:11.1]} 13... Rc8 {[%clk 0:03:02.3]}
14. Nc3 {[%clk 0:03:12]} 14... Qb6 {[%clk 0:03:02.9]} 15. Na4 {[%clk 0:03:12.4]}
15... Qa5 {[%clk 0:03:00.7]} 16. Nac5 {[%clk 0:03:12.2]} 16... b6 {[%clk
0:02:59.1]} 17. Bd2 {[%clk 0:02:28]} 17... Qb5 {[%clk 0:02:57]} 18. a4 {[%clk
0:02:27.6]} 18... Qc4 {[%clk 0:02:56.4]} 19. Nxe6 {[%clk 0:02:13.6]} 19... fxe6
{[%clk 0:02:55.7]} 20. Be3 {[%clk 0:02:14.4]} 20... Nxd4 {[%clk 0:02:53.4]} 21.
Rc1 {[%clk 0:02:08.2]} 21... Nc2 {[%clk 0:02:40.2]} 22. Bf2 {[%clk 0:01:43.9]}
22... Qb3 {[%clk 0:02:24.3]} 23. Ne1 {[%clk 0:01:39.1]} 23... Qxb2 {[%clk
0:01:43.6]} 24. Rxc2 {[%clk 0:01:38.9]} 24... Rxc2 {[%clk 0:01:43.4]} 25. Qxc2
{[%clk 0:01:38.8]} 25... Qxc2 {[%clk 0:01:43.5]} 26. Nxc2 {[%clk 0:01:39.4]}
26... Bc5 {[%clk 0:01:45.4]} 27. Bxc5 {[%clk 0:01:37.5]} 27... bxc5 {[%clk
0:01:47.3]} 28. Rb1 {[%clk 0:01:38]} 28... g5 {[%clk 0:01:46.7]} 29. g3 {[%clk
0:01:36.2]} 29... d4 {[%clk 0:01:45.4]} 30. Kf2 {[%clk 0:01:35.1]} 30... Rd8
{[%clk 0:01:44.6]} 31. Na3 {[%clk 0:01:29.6]} 31... d3 {[%clk 0:01:40.7]} 32.
Ke3 {[%clk 0:01:27]} 32... Rd4 {[%clk 0:01:39.6]} 33. Nb5 {[%clk 0:01:25.6]}
33... Rxa4 {[%clk 0:01:39.4]} 34. Kxd3 {[%clk 0:01:26.4]} 34... Ra2 {[%clk
0:01:39.8]} 35. h4 {[%clk 0:01:23]} 35... gxf4 {[%clk 0:01:39.4]} 36. gxf4
{[%clk 0:01:23.9]} 36... Rf2 {[%clk 0:01:39.6]} 37. Ke3 {[%clk 0:01:24.2]} 37...
Rh2 {[%clk 0:01:39.9]} 38. Nxa7 {[%clk 0:01:24.3]} 38... Rxh4 {[%clk 0:01:40.1]}
39. Rc1 {[%clk 0:01:19.3]} 39... Rh3+ {[%clk 0:01:41.1]} 40. Kf2 {[%clk
0:01:19.1]} 40... Ra3 {[%clk 0:01:39.5]} 41. Nb5 {[%clk 0:01:17.4]} 41... Ra4
{[%clk 0:01:40.2]} 42. Kf3 {[%clk 0:01:18]} 42... Rb4 {[%clk 0:01:40.4]} 43.
Rxc5 {[%clk 0:01:17.4]} 43... h5 {[%clk 0:01:41.3]} 44. Nd6 {[%clk 0:01:13.4]}
44... h4 {[%clk 0:01:42.3]} 45. Rc1 {[%clk 0:01:13.9]} 45... Rb3+ {[%clk
0:01:42.6]} 46. Ke2 {[%clk 0:01:13.6]} 46... Rb4 {[%clk 0:01:41.7]} 47. Ke3
{[%clk 0:01:11.8]} 47... Rb3+ {[%clk 0:01:42.7]} 48. Ke2 {[%clk 0:01:03.5]}
48... Rb4 {[%clk 0:01:43.6]} 49. Rc8+ {[%clk 0:00:39.2]} 49... Kh7 {[%clk
0:01:41.9]} 50. Nf7 {[%clk 0:00:34.3]} 50... Rxf4 {[%clk 0:01:38.6]} 51. Ng5+
{[%clk 0:00:35.3]} 51... Kh6 {[%clk 0:01:35.4]} 52. Nxe6 {[%clk 0:00:33.1]}
52... Re4+ {[%clk 0:01:35.5]} 53. Kf3 {[%clk 0:00:34.2]} 53... Rxe5 {[%clk
0:01:36.4]} 54. Rh8+ {[%clk 0:00:35]} 54... Kg6 {[%clk 0:01:36.6]} 55. Nf4+
{[%clk 0:00:35.3]} 55... Kg7 {[%clk 0:01:36.6]} 56. Rxh4 {[%clk 0:00:35.4]}
56... Ra5 {[%clk 0:01:38.1]} 57. Rh5 {[%clk 0:00:34.3]} 57... Kf6 {[%clk
0:01:37.9]} 58. Rh6+ {[%clk 0:00:34.6]} 58... Ke5 {[%clk 0:01:34.1]} 59. Re6+
{[%clk 0:00:32]} 59... Kd4 {[%clk 0:01:34.7]} 60. Ne2+ {[%clk 0:00:32.3]} 60...
Kd5 {[%clk 0:01:34.6]} 61. Re8 {[%clk 0:00:33.3]} 61... Ra3+ {[%clk 0:01:33.4]}
62. Kf4 {[%clk 0:00:34.2]} 62... Ra1 {[%clk 0:01:32.9]} 63. Kxf5 {[%clk
0:00:35]} 63... Kd6 {[%clk 0:01:33]} 64. Nf4 {[%clk 0:00:36.9]} 64... Kd7 {[%clk
0:01:33.7]} 65. Re2 {[%clk 0:00:37.5]} 65... Ra5+ {[%clk 0:01:33.4]} 66. Kf6
{[%clk 0:00:38.6]} 66... Ra1 {[%clk 0:01:34.7]} 67. Rd2+ {[%clk 0:00:39.1]}
67... Kc6 {[%clk 0:01:34.7]} 68. Ke5 {[%clk 0:00:39.3]} 68... Re1+ {[%clk
0:01:34.7]} 69. Ne2 {[%clk 0:00:40.4]} 69... Rh1 {[%clk 0:01:35]} 70. Rc2+
{[%clk 0:00:41.3]} 70... Kb5 {[%clk 0:01:35.7]} 71. Nd4+ {[%clk 0:00:42.2]}
71... Kb6 {[%clk 0:01:36.1]} 72. Kd6 {[%clk 0:00:41.3]} 72... Rh6+ {[%clk
0:01:36.1]} 73. Ne6 {[%clk 0:00:41.9]} 73... Rh1 {[%clk 0:01:36]} 74. Rb2+
{[%clk 0:00:42.7]} 74... Ka5 {[%clk 0:01:36.7]} 75. Kc6 {[%clk 0:00:40.3]} 75...
Rc1+ {[%clk 0:01:36.6]} 76. Nc5 {[%clk 0:00:40.9]} 76... Rh1 {[%clk 0:01:32.9]}
77. Rb5# {[%clk 0:00:41.1]} 1-0

[Event "*** Titled Tuesday 3|2 Blitz"]
[Site "Chess.com"]
[Date "2016.05.03"]
[Round "2"]
[White "Dr-Bassem"]
[Black "Kacparov"]
[Result "1-0"]
[WhiteElo "2575"]
[BlackElo "2573"]
[TimeControl "180+2"]
[EndTime "17:22:36 PDT"]
[Termination "Dr-Bassem won by resignation"]

1. e4 {[%clk 0:03:01.9]} 1... c5 {[%clk 0:03:00.7]} 2. Nf3 {[%clk 0:03:03]} 2...
e6 {[%clk 0:03:01.9]} 3. d3 {[%clk 0:03:04.3]} 3... d5 {[%clk 0:03:02.3]} 4.
Nbd2 {[%clk 0:03:04.3]} 4... Nc6 {[%clk 0:03:02.9]} 5. g3 {[%clk 0:03:05.8]}
5... Nf6 {[%clk 0:03:03.3]} 6. Bg2 {[%clk 0:03:07.2]} 6... g6 {[%clk 0:03:00.8]}
7. O-O {[%clk 0:03:08.6]} 7... Bg7 {[%clk 0:03:01.9]} 8. Re1 {[%clk 0:03:10.1]}
8... O-O {[%clk 0:03:02.7]} 9. c3 {[%clk 0:03:11.7]} 9... b6 {[%clk 0:03:02.8]}
10. e5 {[%clk 0:03:10.4]} 10... Nd7 {[%clk 0:03:03.8]} 11. d4 {[%clk 0:03:11.9]}
11... cxd4 {[%clk 0:03:04.5]} 12. cxd4 {[%clk 0:03:12.6]} 12... Ba6 {[%clk
0:03:06.1]} 13. Nb1 {[%clk 0:02:52.1]} 13... Na5 {[%clk 0:03:03.8]} 14. Nc3
{[%clk 0:02:49.8]} 14... b5 {[%clk 0:03:02.6]} 15. h4 {[%clk 0:02:46.6]} 15...
b4 {[%clk 0:02:53.7]} 16. Ne2 {[%clk 0:02:42.9]} 16... h6 {[%clk 0:02:46.9]} 17.
b3 {[%clk 0:02:42.1]} 17... Rc8 {[%clk 0:02:40.5]} 18. Be3 {[%clk 0:02:41.5]}
18... Qb6 {[%clk 0:02:28.7]} 19. Qd2 {[%clk 0:02:38.9]} 19... Kh7 {[%clk
0:02:29.8]} 20. Nh2 {[%clk 0:02:10.7]} 20... Nc6 {[%clk 0:02:24.5]} 21. Ng4
{[%clk 0:02:10.5]} 21... h5 {[%clk 0:02:24.5]} 22. Nh2 {[%clk 0:02:11.9]} 22...
Qb5 {[%clk 0:02:17.3]} 23. Nf4 {[%clk 0:02:12.3]} 23... Ne7 {[%clk 0:02:16.2]}
24. Bf1 {[%clk 0:02:08.3]} 24... Qb7 {[%clk 0:02:12.4]} 25. Bxa6 {[%clk
0:02:08.3]} 25... Qxa6 {[%clk 0:02:14.3]} 26. Qxb4 {[%clk 0:02:09.2]} 26... Nf5
{[%clk 0:02:15.6]} 27. Nf3 {[%clk 0:02:07]} 27... Rc2 {[%clk 0:02:00.4]} 28.
Rec1 {[%clk 0:01:25.5]} 28... Rfc8 {[%clk 0:01:58.4]} 29. Rxc2 {[%clk
0:01:22.1]} 29... Rxc2 {[%clk 0:02:00.3]} 30. a4 {[%clk 0:01:12.6]} 30... Bf8
{[%clk 0:01:55.8]} 31. Qb5 {[%clk 0:01:10]} 31... Qc8 {[%clk 0:01:54.3]} 32. Re1
{[%clk 0:00:50.9]} 32... a6 {[%clk 0:01:54.1]} 33. Qd3 {[%clk 0:00:40.8]} 33...
Rc3 {[%clk 0:01:54.9]} 34. Qd1 {[%clk 0:00:41.3]} 34... Qb7 {[%clk 0:01:53.6]}
35. Ng5+ {[%clk 0:00:41.6]} 35... Kg8 {[%clk 0:01:53.8]} 36. Nxh5 {[%clk
0:00:41.4]} 36... Qxb3 {[%clk 0:01:47.5]} 37. Qxb3 {[%clk 0:00:36.3]} 37... Rxb3
{[%clk 0:01:48.2]} 38. Nf6+ {[%clk 0:00:36.9]} 38... Nxf6 {[%clk 0:01:48.8]} 39.
exf6 {[%clk 0:00:38.8]} 39... Rb4 {[%clk 0:01:47.4]} 40. Nf3 {[%clk 0:00:35.6]}
40... Rxa4 {[%clk 0:01:46.6]} 41. g4 {[%clk 0:00:25.9]} 41... Nd6 {[%clk
0:01:46.9]} 42. Rb1 {[%clk 0:00:22.6]} 42... Ne4 {[%clk 0:01:44.9]} 43. g5
{[%clk 0:00:21.5]} 43... Rb4 {[%clk 0:01:45]} 44. Rc1 {[%clk 0:00:22.8]} 44...
Rc4 {[%clk 0:01:45.2]} 45. Rb1 {[%clk 0:00:24.3]} 45... Bd6 {[%clk 0:01:35.7]}
46. Rb6 {[%clk 0:00:22]} 46... a5 {[%clk 0:01:33.4]} 47. Ra6 {[%clk 0:00:22.8]}
47... a4 {[%clk 0:01:34.4]} 48. Kg2 {[%clk 0:00:22.9]} 48... a3 {[%clk
0:01:33.4]} 49. Ne5 {[%clk 0:00:21.7]} 49... Bxe5 {[%clk 0:01:24.3]} 50. dxe5
{[%clk 0:00:23.6]} 50... d4 {[%clk 0:01:23.8]} 51. Bf4 {[%clk 0:00:24.9]} 51...
Rc3 {[%clk 0:01:17.1]} 52. Ra8+ {[%clk 0:00:24.1]} 52... Kh7 {[%clk 0:01:18.1]}
53. Ra7 {[%clk 0:00:25.8]} 53... Rc2 {[%clk 0:01:01.2]} 54. Rxf7+ {[%clk
0:00:24.2]} 54... Kg8 {[%clk 0:01:02.3]} 55. Rg7+ {[%clk 0:00:25.3]} 55... Kf8
{[%clk 0:01:03.6]} 56. Kf3 {[%clk 0:00:19.7]} 56... a2 {[%clk 0:01:04.3]} 57.
Ra7 {[%clk 0:00:20.3]} 57... Nc3 {[%clk 0:00:37.6]} 58. h5 {[%clk 0:00:20.8]}
58... Nb5 {[%clk 0:00:38.4]} 59. Ra8+ {[%clk 0:00:19.5]} 59... Kf7 {[%clk
0:00:39.8]} 60. h6 {[%clk 0:00:19.3]} 60... Rc3+ {[%clk 0:00:35.6]} 61. Kg2
{[%clk 0:00:19.9]} 61... Rc8 {[%clk 0:00:18.4]} 62. Rxc8 {[%clk 0:00:16.1]}
62... a1=Q {[%clk 0:00:19.1]} 63. h7 {[%clk 0:00:17.5]} 63... Qb1 {[%clk
0:00:11.5]} 64. Rf8+ {[%clk 0:00:17.3]} 1-0